bitfinex/quotes_ETHUSD_20230404
["timestamp","ask_amount","ask_price","bid_price","bid_amount"]
[1680640784452,0.006,1872.7,1872.1,10.68102218]
[1680640784453,1.40623097,1873.1,1872.3,5.821936]
[1680640784676,0.009,1873.1,1872.5,5.635]
[1680640784983,0.1,1872.9,1872.6,0.53401]
[1680640785134,0.1,1872.9,1872.6,0.27172807]
[1680640785334,0.1,1872.9,1872.7,0.32]
[1680640785757,0.23154827,1872.6,1872.1,1.06827]
[1680640785961,0.23154827,1872.6,1872.1,5.635]
[1680640786171,0.23154827,1872.6,1872.2,0.26706]
[1680640786674,0.23154827,1872.6,1872.1,6.252516]
[1680640786833,0.23154827,1872.6,1872.0,0.27308]
[1680640787189,0.23154827,1872.6,1872.4,0.165]
[1680640787353,0.23,1872.5,1872.4,0.165]
[1680640787552,0.94805537,1872.5,1872.4,0.165]
[1680640787780,3.94805537,1872.5,1871.9,5.1083]
[1680640788090,3.94805537,1872.5,1871.9,0.0218322]
[1680640788259,8.82225537,1872.5,1871.9,0.0218322]
[1680640788586,1.134,1872.4,1871.9,0.0218322]
[1680640788768,1.143,1872.2,1871.7,5.0362]
[1680640789082,1.143,1872.2,1871.7,0.002]
[1680640789289,0.23,1872.1,1871.6,5.641]
[1680640789489,1.143,1871.8,1871.6,0.006]
[1680640789689,4.584,1871.7,1870.9,0.006]
[1680640789871,1.143,1871.6,1870.9,0.26723]
[1680640790184,4.143,1871.6,1870.9,5.90223]
[1680640790388,0.23,1871.5,1870.9,5.641]
[1680640790549,0.23,1871.5,1870.9,6.2053]
[1680640790550,1.143,1871.3,1870.9,6.2053]
[1680640790924,1.143,1871.3,1871.0,0.127]
[1680640791088,1.143,1871.3,1871.0,0.133]
[1680640791743,1.143,1871.3,1871.0,0.131]
[1680640792147,0.23,1871.2,1871.0,0.127]
[1680640792349,7.348,1871.5,1871.0,0.127]
[1680640792587,0.23,1871.4,1871.0,0.127]
[1680640793566,0.003,1871.5,1871.1,8.40102218]
[1680640793887,2.00823536,1872.1,1871.2,6.47510222]
[1680640793888,0.48076,1872.0,1871.2,6.47510222]
[1680640794185,0.48076,1872.0,1871.2,6.62094258]
[1680640794186,6.21742218,1871.9,1871.2,6.62094258]
[1680640794487,4.345,1871.8,1871.2,0.97695866]
[1680640794698,2.76602218,1871.7,1871.2,0.97495866]
[1680640794910,0.23,1871.6,1871.2,1.24415866]
[1680640795200,0.23,1871.6,1871.2,1.83406453]
[1680640796821,0.23,1871.6,1871.2,8.00347453]
[1680640797122,7.348,1871.8,1871.2,9.07230453]
[1680640797123,3.23,1871.7,1871.2,9.07230453]
[1680640797281,0.23,1871.7,1871.2,9.07230453]
[1680640797469,0.23,1871.7,1871.3,0.90723045]
[1680640797806,3.0,1871.9,1871.4,6.43652]
[1680640797970,3.0,1871.9,1871.4,6.44252]
[1680640798308,3.011,1872.1,1871.4,6.44252]
[1680640798622,0.13761866,1872.2,1871.5,6.279252]
[1680640798822,1.143,1872.4,1871.7,6.5564]
[1680640799118,3.90902218,1872.4,1871.7,6.5564]
[1680640799317,3.91702218,1872.4,1871.7,6.5564]
[1680640799617,1.143,1872.4,1871.8,6.29064]
[1680640799768,1.143,1872.4,1871.9,0.2671]
[1680640800177,4.143,1872.4,1871.9,0.2671]
[1680640800480,3.0,1872.4,1872.0,0.127]
[1680640800672,0.008,1872.5,1872.0,1.050401]
[1680640800868,3.23954827,1872.6,1872.0,1.050401]
[1680640801064,6.24587045,1872.6,1872.0,1.050401]
[1680640801269,6.24887045,1872.6,1872.0,1.050401]
[1680640801490,6.24887045,1872.6,1872.1,0.1050401]
[1680640801770,6.24887045,1872.6,1872.1,0.3721101]
[1680640801771,0.23,1872.5,1872.1,0.3721101]
[1680640802081,0.23154827,1872.6,1872.1,0.1050401]
[1680640802286,0.23154827,1872.6,1872.1,0.3721101]
[1680640802685,0.23154827,1872.6,1872.2,8.42285088]
[1680640802888,0.23154827,1872.6,1872.4,5.635]
[1680640803519,0.23154827,1872.6,1872.5,0.0218252]
[1680640803738,0.23154827,1872.6,1872.5,6.5798852]
[1680640805012,0.18154827,1872.6,1872.5,6.5798852]
[1680640805170,0.18154827,1872.6,1872.5,9.34590738]
[1680640805369,0.18154827,1872.6,1872.5,10.38751212]
[1680640805608,0.18154827,1872.6,1872.5,12.38451212]
[1680640805822,0.213722,1872.7,1872.5,12.38451212]
[1680640805972,0.213722,1872.7,1872.6,10.39802218]
[1680640806167,2.2e-05,1872.7,1872.6,12.26706218]
[1680640806372,2.2e-05,1872.7,1872.6,13.61251139]
[1680640807179,2.2e-05,1872.7,1872.6,11.61551139]
[1680640809513,2.2e-05,1872.7,1872.6,12.5966787]
[1680640809887,2.2e-05,1872.7,1872.6,8.22861652]
[1680640810219,2.2e-05,1872.7,1872.6,6.88316731]
[1680640810377,2.2e-05,1872.7,1872.6,6.61616731]
[1680640811233,2.2e-05,1872.7,1872.6,0.98116731]
[1680640811527,0.00779633,1872.5,1872.2,0.002]
[1680640811825,1.986,1872.4,1872.1,5.641]
[1680640811993,0.00779633,1872.5,1872.1,6.47237]
[1680640812521,0.00779633,1872.5,1872.3,0.84054442]
[1680640813721,0.24811633,1872.5,1872.3,0.84054442]
[1680640814296,0.24811633,1872.5,1872.2,0.006]
[1680640814518,0.24811633,1872.5,1872.2,0.002]
[1680640815022,0.00779633,1872.5,1872.0,5.92391104]
[1680640815200,0.00779633,1872.5,1872.0,6.57613214]
[1680640815400,0.00779633,1872.5,1872.3,0.84409467]
[1680640816400,0.00779633,1872.5,1872.1,0.006]
[1680640816603,0.24811633,1872.5,1872.1,0.006]
[1680640818335,1.998,1872.4,1872.1,0.006]
[1680640818520,1.998,1872.4,1871.9,0.002]
[1680640818521,0.24034,1872.3,1872.0,0.002]
[1680640818722,1.998,1872.2,1871.9,0.006]
[1680640818922,2.23836,1872.2,1871.9,0.006]
[1680640819426,2.23836,1872.2,1872.0,0.80400113]
[1680640819602,1.998,1872.2,1872.0,0.80400113]
[1680640820327,1.998,1872.2,1871.8,0.006]
[1680640820632,1.998,1872.2,1871.7,5.90612]
[1680640820834,1.998,1872.2,1871.7,6.548362]
[1680640820994,1.998,1872.2,1871.7,6.552362]
[1680640821406,2.23835,1872.2,1871.7,6.285242]
[1680640822033,0.24035,1872.2,1871.7,6.285242]
[1680640822234,2.70704,1872.3,1871.7,6.552372]
[1680640822440,2.70704,1872.3,1871.7,6.285242]
[1680640822640,0.003,1872.4,1871.8,0.02183336]
[1680640822805,5.00379633,1872.5,1871.9,5.90209]
[1680640823142,5.24412633,1872.5,1871.9,5.641]
[1680640823324,6.62113096,1872.5,1871.9,5.9081]
[1680640823639,6.62113096,1872.5,1871.9,5.641]
[1680640824546,6.62113096,1872.5,1872.0,0.80506267]
[1680640824951,6.62613096,1872.5,1872.0,0.80506267]
[1680640825246,0.6626131,1872.4,1872.0,0.80506267]
[1680640825423,0.9029531,1872.4,1872.0,0.80506267]
[1680640825626,3.9029531,1872.4,1872.0,0.80506267]
[1680640827324,1.996,1872.3,1872.0,0.80506267]
[1680640827650,2.23634,1872.3,1872.0,0.80506267]
[1680640827861,1.996,1872.3,1872.0,0.80506267]
[1680640828168,2.23634,1872.3,1872.0,0.80506267]
[1680640828322,2.23634,1872.3,1871.9,0.006]
[1680640828525,2.82653531,1872.3,1871.9,0.006]
[1680640828760,1.993,1872.0,1871.6,0.006]
[1680640829052,2.23338,1872.0,1871.6,0.006]
[1680640829222,1.98,1871.8,1871.5,0.006]
[1680640829423,1.98,1871.8,1871.7,0.76683311]
[1680640829624,4.97602218,1871.8,1871.7,0.76683311]
[1680640829828,5.21643218,1871.8,1871.7,0.76683311]
[1680640830028,6.0624754,1871.8,1871.7,0.76683311]
[1680640830215,5.8220654,1871.8,1871.7,0.76683311]
[1680640830409,5.8220654,1871.8,1871.5,0.006]
[1680640830759,0.23,1871.7,1871.5,0.006]
[1680640830977,0.23,1871.7,1871.4,0.006]
[1680640831450,0.23,1871.7,1871.6,0.6894042]
[1680640831659,1.98,1871.8,1871.6,0.6894042]
[1680640831813,1.97781285,1871.8,1871.6,0.6894042]
[1680640832431,1.97781285,1871.8,1871.3,0.26718]
[1680640832770,1.97781285,1871.8,1871.3,0.927649]
[1680640833272,2.21822285,1871.8,1871.3,0.660459]
[1680640833461,1.97781285,1871.8,1871.3,0.927649]
[1680640834230,1.97781285,1871.8,1871.3,0.923649]
[1680640834459,1.97781285,1871.8,1871.3,0.927649]
[1680640835638,2.21822285,1871.8,1871.3,0.927649]
[1680640836008,2.21822285,1871.8,1871.3,0.660459]
[1680640836160,0.23,1871.7,1871.3,0.660459]
[1680640836466,0.47043,1871.7,1871.3,0.660459]
[1680640836671,0.23,1871.7,1871.3,0.660459]
[1680640836833,0.23,1871.7,1871.3,0.927649]
[1680640837439,0.23,1871.7,1871.3,0.660459]
[1680640837972,0.23,1871.7,1871.3,0.921649]
[1680640838274,0.23,1871.7,1871.3,0.927649]
[1680640838477,0.23,1871.7,1871.4,0.0927649]
[1680640839273,1.993,1871.6,1871.5,0.84067002]
[1680640840392,1.993,1871.6,1871.2,0.12184036]
[1680640840885,1.993,1871.6,1871.2,0.38904036]
[1680640841061,1.993,1871.6,1871.2,0.39504036]
[1680640841456,1.993,1871.6,1871.2,0.33904036]
[1680640841678,1.993,1871.6,1871.2,0.7226874]
[1680640841989,1.893,1871.6,1871.2,0.9898874]
[1680640842690,0.003,1871.8,1871.2,7.1592974]
[1680640842989,0.008,1871.9,1871.4,5.635]
[1680640842990,0.2404,1871.9,1871.4,5.635]
[1680640843196,0.14395954,1872.0,1871.6,5.635]
[1680640843362,0.38434954,1872.0,1871.6,5.635]
[1680640843560,0.14395954,1872.0,1871.6,5.90214]
[1680640843752,0.14395954,1872.0,1871.7,0.590214]
[1680640843952,0.008,1872.0,1871.7,0.590214]
[1680640844156,1.994,1872.1,1871.7,0.590214]
[1680640844384,1.994,1872.1,1871.6,0.26714]
[1680640844691,2.23437,1872.1,1871.5,5.635]
[1680640844903,2.23437,1872.1,1871.5,5.90215]
[1680640845082,2.23437,1872.1,1871.6,6.225215]
[1680640845571,2.23437,1872.1,1871.6,6.492365]
[1680640845782,2.36848216,1872.1,1871.6,6.492365]
[1680640846001,5.36848216,1872.1,1871.6,6.225215]
[1680640846299,5.37148216,1872.1,1871.7,0.6225215]
[1680640846456,5.37148216,1872.1,1871.5,5.90415]
[1680640846652,5.37148216,1872.1,1871.5,5.92398686]
[1680640848772,0.14211216,1872.1,1871.7,5.92396454]
[1680640848975,0.13411216,1872.1,1871.7,5.65683454]
[1680640849304,0.38248216,1872.1,1871.8,0.56568345]
[1680640849509,0.38248216,1872.1,1871.7,0.02183454]
[1680640849510,0.13411216,1872.1,1871.7,5.65683454]
[1680640849673,0.38248216,1872.1,1871.7,0.02183454]
[1680640849875,0.13411216,1872.1,1871.7,0.02183454]
[1680640851172,7.97302218,1872.0,1871.4,0.008]
[1680640851376,1.02730222,1871.9,1871.4,0.26717]
[1680640851683,7.0043244,1871.9,1871.4,0.26717]
[1680640851892,7.0073244,1871.9,1871.4,0.26717]
[1680640852092,1.998,1871.8,1871.4,0.26717]
[1680640852277,0.23,1871.7,1871.4,0.26917]
[1680640852678,0.23,1871.7,1871.4,0.26717]
[1680640853017,1.998,1871.8,1871.4,3.580755]
[1680640853211,1.998,1871.8,1871.4,3.847925]
[1680640853371,1.998,1871.8,1871.4,0.02183804]
[1680640854176,1.998,1871.8,1871.4,0.28900804]
[1680640854376,1.998,1871.8,1871.5,0.84302129]
[1680640862341,1.142,1871.8,1871.5,0.84302129]
[1680640862651,4.364,1871.9,1871.5,0.84302129]
[1680640862949,0.011,1872.0,1871.5,7.27951129]
[1680640863120,0.008,1872.3,1871.9,0.00237453]
[1680640863446,0.00779633,1872.5,1872.0,7.50464]
[1680640863655,0.01079633,1872.5,1872.1,6.385464]
[1680640863953,0.00779633,1872.5,1872.3,5.635]
[1680640864243,0.00779633,1872.5,1872.4,0.26703]
[1680640864411,0.00779633,1872.5,1872.3,5.90203]
[1680640864756,0.00779633,1872.5,1872.3,6.492433]
[1680640865326,0.00779633,1872.5,1872.3,7.026533]
[1680640867460,0.00779633,1872.5,1872.3,7.04836054]
[1680640868158,0.00571284,1872.5,1872.3,7.04836054]
[1680640868545,0.00571284,1872.5,1872.3,9.81438272]
[1680640868728,0.00571284,1872.5,1872.4,8.48567827]
[1680640869149,0.00571284,1872.5,1872.4,11.25170045]
[1680640869327,0.1,1872.9,1872.4,12.10816275]
[1680640869515,0.527412,1872.9,1872.7,0.26699]
[1680640870448,0.527412,1872.9,1872.8,5.635]
[1680640870772,0.527412,1872.9,1872.8,9.79214118]
[1680640870931,0.527412,1872.9,1872.8,10.92714118]
[1680640871337,0.527412,1872.9,1872.8,10.93214118]
[1680640872283,0.527412,1872.9,1872.8,9.79214118]
[1680640874186,0.527412,1872.9,1872.8,8.99122118]
[1680640874489,0.527412,1872.9,1872.8,6.225199]
[1680640874780,0.477412,1872.9,1872.8,41.492169]
[1680640875005,0.477412,1872.9,1872.8,41.225199]
[1680640875209,0.477412,1872.9,1872.8,41.492169]
[1680640875414,0.477412,1872.9,1872.8,41.225199]
[1680640875759,0.477412,1872.9,1872.8,41.492169]
[1680640876139,0.477412,1872.9,1872.8,43.66799218]
[1680640876412,0.477412,1872.9,1872.8,44.20194218]
[1680640877302,0.1,1873.0,1872.9,0.5]
[1680640877469,0.1,1873.0,1872.9,11.90977218]
[1680640877790,0.13214747,1873.6,1873.0,0.1]
[1680640877962,0.1,1873.7,1873.4,6.775]
[1680640878164,0.1,1873.7,1873.6,5.635]
[1680640878488,0.1,1873.7,1873.6,5.90186]
[1680640878691,0.1,1873.8,1873.6,5.635]
[1680640878890,0.1,1873.8,1873.5,0.002]
[1680640879101,0.1,1873.8,1873.4,0.26688]
[1680640879255,0.1,1873.8,1873.5,2.76602218]
[1680640879456,0.1,1873.8,1873.6,0.26686]
[1680640879902,0.1,1873.8,1873.7,8.40102218]
[1680640880064,0.1,1873.8,1873.7,9.20157218]
[1680640880868,0.1,1873.8,1873.7,8.66787218]
[1680640881092,0.1,1873.8,1873.7,9.69715764]
[1680640881597,0.1,1873.8,1873.7,6.66428546]
[1680640883199,0.085501,1873.8,1873.6,0.002]
[1680640883396,0.085501,1873.8,1873.5,5.635]
[1680640883572,0.085501,1873.8,1873.5,6.43563]
[1680640883973,0.085501,1873.8,1873.5,5.90187]
[1680640884173,0.085501,1873.8,1873.5,5.89792724]
[1680640884379,0.085501,1873.8,1873.6,0.61441017]
[1680640885417,1.91259332,1873.7,1873.6,0.61441017]
[1680640886013,2.15275332,1873.7,1873.6,0.61441017]
[1680640886226,1.91259332,1873.7,1873.6,0.61441017]
[1680640886415,1.91259332,1873.7,1873.2,5.90192]
[1680640886568,0.22382543,1873.7,1873.2,5.90792]
[1680640886768,0.22382543,1873.7,1873.2,5.639]
[1680640887114,0.22382543,1873.7,1873.2,5.641]
[1680640887410,0.22382543,1873.7,1873.3,0.7961884]
[1680640888220,0.46398543,1873.7,1873.3,0.7961884]
[1680640888373,0.22382543,1873.7,1873.3,0.7961884]
[1680640888572,0.22382543,1873.7,1873.3,1.0630884]
[1680640889112,0.22382543,1873.7,1873.3,1.5968984]
[1680640889520,2.062501,1873.8,1873.3,1.5968984]
[1680640890421,0.085501,1873.8,1873.3,7.25371428]
[1680640890571,0.085501,1873.8,1873.3,10.01973646]
[1680640890915,0.085501,1873.8,1873.5,5.90187]
[1680640891075,0.085501,1873.8,1873.7,5.635]
[1680640891476,0.085501,1873.8,1873.7,6.1987]
[1680640891695,0.085501,1873.8,1873.7,6.46555]
[1680640892087,0.085501,1873.8,1873.7,6.1987]
[1680640892323,0.085501,1873.8,1873.7,6.48736122]
[1680640892674,0.085501,1873.8,1873.7,7.02106122]
[1680640893177,0.085501,1873.8,1873.7,9.7870834]
[1680640893432,0.085501,1873.8,1873.7,10.58353271]
[1680640893928,0.085501,1873.8,1873.7,10.04983271]
[1680640894278,0.085501,1873.8,1873.7,10.58353271]
[1680640895973,0.1,1874.1,1873.8,0.085]
[1680640896174,0.1,1874.1,1874.0,10.38402218]
[1680640896394,0.1,1874.1,1874.0,12.25166218]
[1680640897434,0.108,1875.0,1874.1,0.1]
[1680640897592,0.1,1875.0,1874.8,5.635]
[1680640897796,0.83676909,1876.1,1874.8,5.90169]
[1680640898022,0.553005,1876.3,1875.4,5.635]
[1680640898304,0.23965,1877.7,1875.6,7.50101]
[1680640898550,0.82905328,1877.4,1876.3,5.635]
[1680640898862,1.60791624,1878.2,1877.2,1.89877877]
[1680640899013,1.60791624,1878.2,1878.0,1.70859376]
[1680640899348,0.008,1879.2,1878.0,1.70859376]
[1680640899349,0.82874292,1879.1,1878.0,0.27223]
[1680640899531,0.002,1878.7,1878.1,1.67727523]
[1680640899843,10.92,1879.0,1878.1,0.5]
[1680640900057,10.92,1879.0,1877.7,0.002]
[1680640900058,0.48231034,1878.0,1877.9,0.5]
[1680640900199,0.71113585,1878.6,1876.9,5.0]
[1680640900402,1.38137584,1878.7,1877.0,1.51808784]
[1680640900403,0.66113585,1878.5,1877.0,1.51808784]
[1680640900751,0.66113585,1878.5,1877.0,5.641]
[1680640900953,0.06611359,1878.4,1877.0,0.508]
[1680640901158,0.06611359,1878.4,1876.9,5.0]
[1680640901159,1.994,1877.5,1876.9,5.002]
[1680640901453,1.991,1878.1,1876.9,0.002]
[1680640901454,1.994,1877.1,1876.9,0.002]
[1680640901746,0.22115899,1877.4,1876.0,6.135]
[1680640901747,1.994,1877.0,1876.0,6.135]
[1680640901959,2.13,1877.3,1876.7,1.56504202]
[1680640902102,1.994,1876.8,1876.7,1.56504202]
[1680640902455,0.26769543,1877.1,1876.7,1.56504202]
[1680640902599,0.23,1877.1,1876.8,0.6565042]
[1680640902799,1.986,1877.8,1876.9,5.0]
[1680640903047,0.02175899,1877.7,1876.8,0.1645042]
[1680640903346,0.02175899,1877.7,1877.0,5.0]
[1680640903559,0.02175899,1877.7,1877.1,0.5]
[1680640903906,1.994,1878.3,1877.2,5.0]
[1680640904111,1.994,1878.3,1877.2,10.635]
[1680640904513,1.976,1878.2,1877.2,5.635]
[1680640904713,1.994,1877.9,1877.1,0.508]
[1680640905009,1.994,1877.5,1877.0,5.002]
[1680640905209,1.99,1878.1,1876.9,0.008]
[1680640905210,1.994,1877.3,1876.9,0.008]
[1680640905428,1.994,1877.3,1876.7,5.0]
[1680640905751,0.002,1877.8,1876.7,5.0]
[1680640905752,0.007,1877.8,1876.7,5.006]
[1680640905912,0.002,1878.4,1878.1,5.0]
[1680640906114,0.66113585,1878.5,1878.3,5.0]
[1680640906433,0.66113585,1878.5,1878.4,0.5]
[1680640906633,0.66113585,1878.5,1878.3,5.0]
[1680640906634,0.66113585,1878.5,1878.3,5.002]
[1680640906851,0.66113585,1878.5,1878.2,0.002]
[1680640907060,0.66113585,1878.5,1878.0,10.635]
[1680640907270,0.72724944,1878.5,1878.0,5.0]
[1680640907437,0.66113585,1878.5,1878.0,5.0]
[1680640907633,0.23220921,1879.5,1878.8,5.0]
[1680640907634,0.008,1879.4,1878.8,5.0]
[1680640907828,0.008,1879.4,1878.9,0.5]
[1680640907829,0.02175899,1879.4,1878.9,0.5]
[1680640908173,0.02175899,1879.4,1878.6,0.002]
[1680640908373,0.1,1879.5,1878.7,0.5]
[1680640908533,0.12175899,1879.5,1878.5,0.002]
[1680640908875,0.12175899,1879.5,1878.2,4.157]
[1680640908876,4.47817899,1879.5,1878.2,2.08183326]
[1680640909169,4.157,1879.3,1878.0,0.008]
[1680640909355,4.39646,1879.3,1877.7,5.004]
[1680640909673,3.211,1879.0,1877.8,0.5004]
[1680640909968,4.157,1878.3,1877.7,0.008]
[1680640910141,0.02175899,1878.2,1877.1,0.006]
[1680640910477,0.2396,1878.1,1877.1,0.006]
[1680640910643,3.0,1878.1,1876.8,0.006]
[1680640910972,0.3,1878.0,1876.8,5.8316]
[1680640911169,0.002,1878.3,1877.5,5.635]
[1680640911330,0.01,1879.0,1877.8,0.5]
[1680640911549,0.2395,1878.9,1877.7,0.002]
[1680640911753,4.63595,1879.1,1877.4,4.163]
[1680640911754,30.16949,1879.0,1877.4,4.163]
[1680640911949,3.256449,1878.9,1877.6,0.5]
[1680640912346,3.256449,1878.9,1877.5,0.4243]
[1680640912347,10.584449,1878.9,1877.5,0.4243]
[1680640912546,10.586449,1878.9,1877.6,5.635]
[1680640912746,6.211,1878.8,1877.6,5.641]
[1680640912975,0.01,1878.8,1878.0,2.76602218]
[1680640913297,0.26769543,1879.2,1878.1,0.27660222]
[1680640913298,0.002,1879.1,1878.1,0.27660222]
[1680640913594,0.23949,1879.0,1878.1,3.0426244]
[1680640913752,4.35648,1879.1,1878.1,0.27660222]
[1680640913950,4.35648,1879.1,1877.7,0.006]
[1680640913951,7.56748,1879.1,1877.7,0.006]
[1680640914167,2.76602218,1879.0,1877.8,8.40102218]
[1680640914500,7.33,1879.1,1878.2,6.33903537]
[1680640914501,0.002,1879.1,1878.2,6.33903537]
[1680640914665,0.4119,1879.2,1878.3,2.76602218]
[1680640914865,0.02175899,1879.1,1878.4,0.27660222]
[1680640915503,0.02175899,1879.1,1878.2,0.71203537]
[1680640915504,5.97702218,1879.0,1878.2,0.002]
[1680640915797,4.38851,1878.8,1877.4,0.006]
[1680640915999,0.678381,1878.7,1877.5,2.76602218]
[1680640916180,0.438851,1878.7,1877.6,5.635]
[1680640916517,0.438851,1878.7,1877.7,2.76602218]
[1680640916682,5.97702218,1878.6,1877.6,0.008]
[1680640917023,5.97702218,1878.6,1877.4,0.2508]
[1680640917024,3.46956,1878.5,1877.4,0.2508]
[1680640917320,3.46956,1878.5,1877.3,0.006]
[1680640917321,6.91502218,1878.4,1877.1,0.006]
[1680640917466,6.91502218,1878.4,1876.9,0.006]
[1680640917467,4.117,1878.0,1876.9,0.006]
[1680640917661,3.0,1877.9,1876.7,0.006]
[1680640918061,3.23964,1877.9,1876.6,0.006]
[1680640918312,3.23964,1877.9,1876.6,5.641]
[1680640918511,3.08998618,1877.8,1876.7,0.5641]
[1680640918812,3.32962618,1877.8,1876.6,0.006]
[1680640919055,0.563604,1877.8,1876.6,0.006]
[1680640919264,3.80890618,1877.8,1876.6,5.635]
[1680640919550,0.38089062,1877.7,1876.8,5.635]
[1680640919703,6.213,1877.9,1877.0,5.635]
[1680640919704,0.002,1877.9,1877.0,5.635]
[1680640920043,0.002,1878.0,1877.2,5.635]
[1680640920243,4.149,1878.2,1877.2,8.40302218]
[1680640920550,0.4149,1878.1,1877.4,5.635]
[1680640920747,0.02175899,1878.1,1877.4,8.40702218]
[1680640921097,2.76602218,1878.0,1877.4,0.006]
[1680640921297,2.76602218,1878.0,1877.3,5.635]
[1680640921540,0.29836121,1877.9,1877.3,0.006]
[1680640921747,0.29836121,1877.9,1877.1,0.26769543]
[1680640922545,0.29836121,1877.9,1877.0,0.006]
[1680640922770,2.76602218,1877.8,1877.1,5.635]
[1680640922970,0.29836121,1877.7,1877.1,0.006]
[1680640923173,3.06438339,1877.7,1877.1,0.006]
[1680640923317,3.30404339,1877.7,1877.1,0.006]
[1680640923521,3.00569218,1877.6,1877.1,0.006]
[1680640923858,0.30056922,1877.5,1877.1,0.006]
[1680640924556,0.30056922,1877.5,1876.9,0.006]
[1680640924853,0.30056922,1877.5,1876.9,5.641]
[1680640925215,0.27860222,1877.7,1876.9,8.40702218]
[1680640925416,0.23964,1877.8,1876.9,8.40702218]
[1680640925618,2.76602218,1877.7,1876.9,5.641]
[1680640925831,2.76602218,1877.7,1877.0,5.635]
[1680640926047,0.27660222,1877.6,1877.0,5.641]
[1680640926222,3.0426244,1877.6,1877.0,5.641]
[1680640926423,2.76602218,1877.6,1877.0,5.641]
[1680640926825,2.76602218,1877.6,1877.0,0.006]
[1680640927025,2.76602218,1877.6,1876.8,0.26641]
[1680640927219,3.06458339,1877.6,1876.8,0.26641]
[1680640927862,3.06458339,1877.6,1876.7,0.006]
[1680640928038,3.06458339,1877.6,1876.8,5.9014]
[1680640928227,3.06458339,1877.6,1876.8,5.9074]
[1680640928749,3.06458339,1877.6,1876.8,5.641]
[1680640928954,3.06458339,1877.6,1877.0,5.635]
[1680640929273,3.06458339,1877.6,1877.0,5.641]
[1680640929451,0.29856121,1877.6,1877.0,5.641]
[1680640929657,0.52423222,1877.9,1877.2,5.635]
[1680640929658,0.002,1877.9,1877.2,5.635]
[1680640929971,0.002,1878.3,1877.4,5.635]
[1680640930118,3.00561218,1878.2,1877.9,0.00221807]
[1680640930337,2.76602218,1878.2,1877.9,0.00221807]
[1680640930883,3.00561218,1878.2,1877.9,0.00221807]
[1680640931098,0.00174201,1877.9,1877.6,5.90129]
[1680640931268,0.00174201,1877.9,1877.8,5.635]
[1680640931834,0.00174201,1877.9,1877.8,5.90126]
[1680640932037,0.00174201,1877.9,1877.8,5.635]
[1680640932635,0.00174201,1877.9,1877.8,8.40102218]
[1680640932840,0.00174201,1877.9,1877.8,8.66728218]
[1680640933085,0.00174201,1877.9,1877.8,9.6510783]
[1680640933439,0.00174201,1877.9,1877.8,9.3808183]
[1680640933853,0.00174201,1877.9,1877.8,6.61479612]
[1680640934059,0.00174201,1877.9,1877.8,0.006]
[1680640934257,0.00174201,1877.9,1877.7,0.004]
[1680640934456,0.00174201,1877.9,1877.7,0.002]
[1680640934686,0.00174201,1877.9,1877.6,5.641]
[1680640935044,0.023501,1877.9,1877.6,0.006]
[1680640935385,0.023501,1877.9,1877.5,0.212869]
[1680640935741,0.023501,1877.9,1877.5,0.479169]
[1680640935940,0.023501,1877.9,1877.6,5.635]
[1680640936546,0.023501,1877.9,1877.6,5.637]
[1680640936778,0.023501,1877.9,1877.6,5.639]
[1680640937928,0.023501,1877.9,1877.6,0.004]
[1680640937929,0.263131,1877.9,1877.6,0.004]
[1680640938142,3.02915318,1877.9,1877.5,0.218869]
[1680640938289,0.30291532,1877.8,1877.5,0.212869]
[1680640938482,3.3085875,1877.8,1877.5,0.212869]
[1680640938792,0.54255532,1877.8,1877.5,0.212869]
[1680640939011,0.71892,1877.8,1877.5,0.212869]
[1680640939226,3.48494218,1877.8,1877.5,0.212869]
[1680640939535,2.76602218,1877.7,1877.5,0.212869]
[1680640939724,0.23966,1877.6,1877.5,0.212869]
[1680640940679,0.71899,1877.6,1877.5,0.212869]
[1680640941235,3.00568218,1877.6,1877.5,0.212869]
[1680640941784,6.69601218,1877.6,1877.5,0.000869]
[1680640942080,9.94623116,1877.6,1877.5,0.000869]
[1680640942725,12.34290116,1877.6,1877.5,0.000869]
[1680640942984,12.34290116,1877.6,1876.6,0.004]
[1680640942985,0.5,1877.5,1876.6,0.004]
[1680640943181,0.5,1877.5,1876.3,5.635]
[1680640943182,6.408,1877.1,1876.4,0.006]
[1680640943426,0.71926,1876.9,1876.4,0.006]
[1680640943937,0.74101899,1876.9,1876.4,0.006]
[1680640944094,3.50704117,1876.9,1876.4,0.006]
[1680640944286,2.76602218,1876.8,1876.5,0.36344296]
[1680640944638,3.00580218,1876.8,1876.5,0.36944296]
[1680640944836,0.02375899,1876.9,1876.5,0.36944296]
[1680640944991,0.23977,1876.8,1876.5,0.36744296]
[1680640945185,0.23977,1876.8,1876.5,0.36944296]
[1680640945408,3.26730117,1876.9,1876.5,0.36944296]
[1680640945409,0.26151899,1876.9,1876.5,0.36944296]
[1680640945647,0.26151899,1876.9,1876.5,0.36344296]
[1680640946431,0.74102899,1876.9,1876.5,0.36344296]
[1680640946762,0.26151899,1876.9,1876.5,0.36344296]
[1680640947250,0.74102899,1876.9,1876.5,0.36344296]
[1680640947949,2.76602218,1876.8,1876.5,0.36344296]
[1680640948155,0.71934,1876.7,1876.5,0.36344296]
[1680640949740,3.48536218,1876.7,1876.5,0.36344296]
[1680640950350,6.20702218,1876.6,1876.5,0.36344296]
[1680640950657,7.88758218,1876.6,1876.5,0.36344296]
[1680640950802,9.9583744,1876.6,1876.5,0.36344296]
[1680640951229,18.5933744,1876.6,1876.5,0.36344296]